bitfinex/quotes_BTCUSD_20250213
["timestamp","ask_amount","ask_price","bid_price","bid_amount"]
[1739461884183,0.42048611,96330.0,96329.0,0.00028751]
[1739461884393,0.41848611,96330.0,96329.0,0.00028751]
[1739461884558,0.41448611,96330.0,96329.0,0.00028751]
[1739461884764,0.42348611,96330.0,96329.0,0.00028751]
[1739461885361,0.42748611,96330.0,96329.0,0.00028751]
[1739461886215,0.42748611,96330.0,96328.0,1.6e-07]
[1739461886216,0.305716,96329.0,96328.0,1.6e-07]
[1739461886435,0.305726,96323.0,96322.0,8.1e-07]
[1739461887058,0.31199215,96323.0,96322.0,8.1e-07]
[1739461887795,0.305729,96321.0,96320.0,4.6e-07]
[1739461888024,0.40823265,96321.0,96320.0,4.6e-07]
[1739461888385,0.4144988,96321.0,96320.0,4.6e-07]
[1739461889892,0.4144988,96321.0,96311.0,0.0004]
[1739461889893,0.15,96320.0,96311.0,0.00036046]
[1739461890097,0.305743,96312.0,96311.0,0.00036046]
[1739461890334,0.40824665,96312.0,96311.0,0.00036046]
[1739461890754,0.41444912,96312.0,96311.0,0.00036046]
[1739461891167,0.155753,96306.0,96297.0,0.00022365]
[1739461891377,0.155753,96306.0,96283.0,0.08323666]
[1739461891378,0.15,96299.0,96283.0,0.08323666]
[1739461891640,0.155789,96284.0,96283.0,0.08323666]
[1739461892040,0.155803,96275.0,96274.0,0.0829]
[1739461892374,0.14502845,96284.0,96274.0,0.0829]
[1739461892603,0.35271345,96300.0,96274.0,0.0829]
[1739461892604,0.00619074,96275.0,96274.0,0.0829]
[1739461892804,0.155797,96279.0,96274.0,0.08333864]
[1739461893005,0.16199374,96275.0,96274.0,0.08333864]
[1739461893214,0.14502845,96284.0,96274.0,0.18584229]
[1739461893406,0.00616307,96275.0,96274.0,0.08333864]
[1739461893606,0.15904889,96284.0,96274.0,0.08333864]
[1739461893923,0.155803,96275.0,96274.0,0.08333864]
[1739461894340,0.16196888,96275.0,96274.0,0.08333864]
[1739461895430,0.16196888,96275.0,96274.0,0.00043864]
[1739461896680,0.16496888,96275.0,96274.0,0.00043864]
[1739461897074,0.16196888,96275.0,96274.0,0.00043864]
[1739461897626,0.16496888,96275.0,96274.0,0.00043864]
[1739461898023,0.16696888,96275.0,96274.0,0.00043864]
[1739461898235,0.16496888,96275.0,96274.0,0.00043864]
[1739461898819,0.16196888,96275.0,96274.0,0.00043864]
[1739461899236,0.16496888,96275.0,96274.0,0.00043864]
[1739461899760,0.16396888,96275.0,96274.0,0.00043864]
[1739461899932,0.16496888,96275.0,96274.0,0.00043864]
[1739461900359,0.16696888,96275.0,96274.0,0.00043864]
[1739461900510,0.16196888,96275.0,96274.0,0.00043864]
[1739461900710,0.16496888,96275.0,96274.0,0.00043864]
[1739461900913,0.16696888,96275.0,96274.0,0.00043864]
[1739461901159,0.16496888,96275.0,96274.0,0.00043864]
[1739461901588,0.207731,96278.0,96274.0,0.00043864]
[1739461901837,0.16505182,96275.0,96274.0,0.00054524]
[1739461902006,0.155803,96275.0,96274.0,0.00054524]
[1739461902335,0.16791883,96275.0,96274.0,0.00054524]
[1739461902839,0.16491883,96275.0,96274.0,0.00054524]
[1739461903039,0.16691883,96275.0,96274.0,0.00054524]
[1739461903658,0.16891883,96275.0,96274.0,0.00054524]
[1739461903863,0.01311583,96275.0,96274.0,0.00054524]
[1739461904357,0.16991883,96275.0,96274.0,0.00054524]
[1739461904566,0.01111583,96275.0,96274.0,0.33835389]
[1739461904784,0.01311583,96275.0,96274.0,0.33835389]
[1739461904959,0.004,96275.0,96274.0,0.18254889]
[1739461905159,0.002,96275.0,96274.0,0.33835389]
[1739461905357,0.01412132,96275.0,96274.0,0.33835389]
[1739461905563,0.005,96275.0,96274.0,0.18254889]
[1739461905812,0.01412132,96275.0,96274.0,0.18254889]
[1739461906016,0.002,96275.0,96274.0,0.18254889]
[1739461906222,0.002,96275.0,96274.0,0.33835389]
[1739461906223,0.0111195,96275.0,96274.0,0.33835389]
[1739461906424,0.002,96275.0,96274.0,0.34035389]
[1739461906641,0.002,96275.0,96274.0,0.39015389]
[1739461906896,0.14502845,96330.0,96277.0,0.023]
[1739461906897,0.02035914,96320.0,96277.0,0.023]
[1739461907099,0.14502845,96290.0,96278.0,0.10250365]
[1739461907283,0.14502845,96290.0,96283.0,0.15579]
[1739461907502,0.14502845,96290.0,96287.0,0.155783]
[1739461907707,0.207689,96298.0,96288.0,0.10250365]
[1739461907924,0.14502845,96300.0,96295.0,0.15577]
[1739461908129,0.14502845,96300.0,96296.0,0.155769]
[1739461908334,0.155758,96303.0,96296.0,0.155769]
[1739461908535,0.30078145,96306.0,96296.0,0.204569]
[1739461908746,0.14502845,96306.0,96296.0,0.30707265]
[1739461908945,0.20791587,96297.0,96292.0,0.0463]
[1739461909147,0.155774,96293.0,96292.0,0.0463]
[1739461909354,0.155772,96295.0,96292.0,0.0463]
[1739461909551,0.00022387,96297.0,96292.0,0.0463]
[1739461909725,0.155774,96293.0,96292.0,0.0463]
[1739461910134,0.155793,96281.0,96280.0,0.0831]
[1739461910333,0.155793,96281.0,96280.0,0.10250365]
[1739461910491,0.16498404,96281.0,96280.0,0.10250365]
[1739461910695,0.00919104,96281.0,96280.0,0.10250365]
[1739461910915,0.14502845,96290.0,96280.0,0.10250365]
[1739461911121,0.14502845,96290.0,96277.0,0.0496]
[1739461911122,0.155792,96282.0,96281.0,0.10250365]
[1739461911324,0.155791,96283.0,96281.0,0.10250365]
[1739461912394,0.155792,96282.0,96281.0,0.10250365]
[1739461912525,0.155798,96278.0,96277.0,0.0496]
[1739461912743,0.155803,96275.0,96274.0,0.00054524]
[1739461912934,0.155803,96275.0,96274.0,0.10304889]
[1739461913622,0.001,96283.0,96274.0,0.10304889]
[1739461913834,0.155796,96280.0,96274.0,0.10304889]
[1739461914051,0.155795,96280.0,96274.0,0.25885389]
[1739461914292,0.0137956,96283.0,96276.0,0.207736]
[1739461914512,0.00914496,96279.0,96277.0,0.10250365]
[1739461914717,0.156798,96278.0,96277.0,0.0041067]
[1739461914916,0.155798,96278.0,96277.0,0.0001067]
[1739461915136,0.16494296,96278.0,96277.0,0.0001067]
[1739461916383,0.16594296,96278.0,96277.0,0.0001067]
[1739461916761,0.16594296,96278.0,96277.0,0.0041067]
[1739461917044,0.16594296,96278.0,96277.0,0.0001067]
[1739461917277,0.01014496,96278.0,96277.0,0.0041067]
[1739461917472,0.01114496,96278.0,96277.0,0.10661035]
[1739461918104,0.002,96278.0,96277.0,0.26241035]
[1739461919864,0.002,96278.0,96277.0,0.10661035]
[1739461920275,0.01114708,96278.0,96277.0,0.26241035]
[1739461920499,0.002,96278.0,96277.0,0.26241035]
[1739461920856,0.002,96278.0,96277.0,0.10661035]
[1739461921410,0.01114708,96278.0,96277.0,0.10661035]
[1739461921841,0.01114708,96278.0,96277.0,0.0041067]
[1739461921842,0.16694508,96278.0,96277.0,0.0041067]
[1739461924043,0.16594508,96278.0,96277.0,0.0001067]
[1739461924402,0.16494508,96278.0,96277.0,0.0001067]
[1739461925012,0.31494508,96278.0,96277.0,0.0001067]
[1739461925928,0.31916916,96278.0,96277.0,0.0001067]
[1739461926124,0.39816916,96278.0,96277.0,0.0001067]
[1739461927244,0.17216916,96278.0,96277.0,0.0001067]
[1739461927904,0.16816916,96278.0,96277.0,0.0001067]
[1739461928148,0.01237116,96278.0,96277.0,0.0001067]
[1739461928351,0.16816916,96278.0,96277.0,0.0001067]
[1739461928566,0.01337116,96278.0,96277.0,0.0001067]
[1739461928783,0.01337116,96278.0,96277.0,0.25944888]
[1739461928989,0.01037116,96278.0,96277.0,0.33761035]
[1739461929207,0.00122408,96278.0,96277.0,0.38691035]
[1739461929638,0.00022408,96278.0,96277.0,0.38691035]
[1739461929862,0.00022408,96278.0,96277.0,0.38791035]
[1739461930274,0.00022408,96278.0,96277.0,0.38691035]
[1739461930477,0.00122408,96278.0,96277.0,0.39091035]
[1739461930722,0.00122408,96278.0,96277.0,0.38691035]
[1739461931597,0.00122408,96278.0,96277.0,0.40991035]
[1739461932059,0.00122408,96278.0,96277.0,0.55991035]
[1739461932267,0.00222408,96278.0,96277.0,0.55991035]
[1739461932682,0.00222408,96278.0,96277.0,0.56391035]
[1739461932683,0.00322408,96278.0,96277.0,0.56391035]
[1739461932884,0.00222408,96278.0,96277.0,0.55991035]
[1739461933310,0.00222408,96278.0,96277.0,0.56391035]
[1739461933719,0.00122408,96278.0,96277.0,0.55991035]
[1739461933924,0.00222408,96278.0,96277.0,0.56391035]
[1739461934371,0.00222408,96278.0,96277.0,0.57391035]
[1739461934588,0.00222408,96278.0,96277.0,0.58391035]
[1739461934809,0.00222408,96278.0,96277.0,0.61583445]
[1739461935022,0.00022387,96297.0,96296.0,0.449269]
[1739461935224,0.00022387,96297.0,96296.0,0.55177265]
[1739461935880,0.00022387,96297.0,96296.0,0.57091704]
[1739461936540,0.00122387,96297.0,96296.0,0.57791704]
[1739461937209,0.00122387,96297.0,96296.0,0.58491704]
[1739461937326,0.00122387,96297.0,96296.0,0.57791704]
[1739461937910,0.00022387,96297.0,96296.0,0.57091704]
[1739461938084,0.00122387,96297.0,96296.0,0.57491704]
[1739461938290,0.00122387,96297.0,96296.0,0.57651607]
[1739461938676,0.00022387,96297.0,96296.0,0.57951607]
[1739461938879,0.00122387,96297.0,96296.0,0.58351607]
[1739461939280,0.00122387,96297.0,96296.0,0.58651607]
[1739461939491,0.00022387,96297.0,96296.0,0.58651607]
[1739461939693,0.00122387,96297.0,96296.0,0.57651607]
[1739461939918,0.00122387,96297.0,96296.0,0.58351607]
[1739461940116,0.00122387,96297.0,96296.0,0.57651607]
[1739461940500,0.00122387,96297.0,96296.0,0.58351607]
[1739461940943,0.00022387,96297.0,96296.0,0.57951607]
[1739461941146,0.00122387,96297.0,96296.0,0.58351607]
[1739461941684,0.00022387,96297.0,96296.0,0.57251607]
[1739461941880,0.00022387,96297.0,96296.0,0.58351607]
[1739461942216,0.00122387,96297.0,96296.0,0.58351607]
[1739461942423,0.00022387,96297.0,96296.0,0.5986306]
[1739461942824,0.00122387,96297.0,96296.0,0.6056306]
[1739461943036,0.00122387,96297.0,96296.0,0.6126306]
[1739461943501,0.00122387,96297.0,96296.0,0.6056306]
[1739461943706,0.00122387,96297.0,96296.0,0.6126306]
[1739461944046,0.207585,96346.0,96337.0,0.155703]
[1739461944338,0.20759,96344.0,96331.0,0.207616]
[1739461944547,0.0833,96349.0,96321.0,0.0762]
[1739461944548,0.155707,96335.0,96332.0,0.10250365]
[1739461944776,0.155709,96334.0,96332.0,0.10250365]
[1739461944917,0.155709,96333.0,96332.0,0.10250365]
[1739461945307,0.15584017,96333.0,96332.0,0.10250365]
[1739461945438,0.00955425,96333.0,96312.0,0.0823]
[1739461945639,0.14502845,96330.0,96313.0,0.10250365]
[1739461945845,0.155714,96331.0,96313.0,0.10250365]
[1739461946057,0.00942308,96329.0,96325.0,0.155722]
[1739461946286,0.155719,96327.0,96326.0,0.10250365]
[1739461947123,0.1782715,96327.0,96326.0,0.10250365]
[1739461947450,0.15574,96314.0,96313.0,0.005]
[1739461947601,0.15574,96314.0,96313.0,0.011]
[1739461948009,0.16516308,96314.0,96313.0,0.011]
[1739461948208,0.16516308,96314.0,96291.0,0.08323666]
[1739461948209,0.155753,96306.0,96295.0,0.15]
[1739461948387,0.155742,96313.0,96296.0,0.10250365]
[1739461948592,0.14502845,96330.0,96296.0,0.10250365]
[1739461948593,0.14502845,96310.0,96296.0,0.10250365]
[1739461948940,0.155756,96305.0,96296.0,0.10250365]
[1739461949094,0.155751,96307.0,96300.0,0.155763]
[1739461949291,0.14502845,96320.0,96301.0,0.10250365]
[1739461949708,0.00942308,96319.0,96313.0,0.155742]
[1739461950080,0.00942308,96319.0,96313.0,0.10250365]
[1739461950198,0.155743,96313.0,96301.0,0.207682]
[1739461950399,0.155743,96313.0,96302.0,0.10250365]
[1739461950803,0.001,96310.0,96303.0,0.207677]
[1739461951060,0.001,96310.0,96304.0,0.10250365]
[1739461951273,0.001,96310.0,96304.0,0.25825865]
[1739461951462,0.155746,96311.0,96304.0,0.25825865]
[1739461951659,0.00938764,96309.0,96304.0,0.25825865]
[1739461951816,0.155746,96311.0,96304.0,0.25825865]
[1739461952022,0.00938764,96308.0,96304.0,0.10250365]
[1739461952295,0.155753,96306.0,96304.0,0.10250365]
[1739461952643,0.155755,96305.0,96304.0,0.10650365]
[1739461952867,0.00938764,96305.0,96302.0,0.005]
[1739461953081,0.155758,96303.0,96302.0,0.005]
[1739461953514,0.16514564,96303.0,96302.0,0.005]
[1739461953924,0.00938764,96303.0,96284.0,0.155789]
[1739461954121,0.15576,96302.0,96295.0,0.155769]
[1739461954273,0.14502845,96310.0,96304.0,0.005]
[1739461954684,0.155748,96309.0,96302.0,0.155759]
[1739461954902,0.155755,96305.0,96304.0,0.006]
[1739461955103,0.207667,96308.0,96296.0,0.10250365]
[1739461955444,0.155768,96297.0,96296.0,0.10250365]
[1739461955784,0.207686,96299.0,96296.0,0.10250365]
[1739461955785,0.155765,96299.0,96296.0,0.10250365]
[1739461956228,0.207667,96308.0,96296.0,0.10250365]
[1739461956725,0.207667,96308.0,96296.0,0.10550365]
[1739461957138,0.155768,96297.0,96296.0,0.10550365]
[1739461957342,0.155768,96297.0,96296.0,0.10850365]
[1739461957551,0.155768,96297.0,96296.0,0.006]
[1739461957915,0.15579,96283.0,96282.0,0.00043864]
[1739461958174,0.207714,96287.0,96282.0,0.00043864]
[1739461958352,0.15579,96283.0,96282.0,0.00043864]
[1739461958767,0.16509805,96283.0,96282.0,0.00043864]
[1739461959499,0.17801386,96283.0,96282.0,0.00643864]
[1739461959707,0.17801386,96283.0,96282.0,0.00043864]
[1739461959905,0.17801386,96283.0,96282.0,0.00643864]
[1739461961058,0.25881386,96283.0,96282.0,0.00643864]
[1739461961636,0.25881386,96283.0,96282.0,0.01143864]
[1739461961862,0.25881386,96283.0,96282.0,0.00543864]
[1739461962041,0.25881386,96283.0,96282.0,0.00843864]
[1739461962277,0.25881386,96283.0,96282.0,0.00543864]
[1739461962701,0.25881386,96283.0,96282.0,0.00043864]
[1739461963947,0.40881386,96283.0,96282.0,0.00443864]
[1739461964522,0.40881386,96283.0,96282.0,0.00043864]
[1739461964727,0.41281386,96283.0,96282.0,0.00043864]
[1739461964865,0.46231386,96283.0,96282.0,0.00043864]
[1739461965061,0.48291396,96283.0,96282.0,0.00043864]
[1739461965676,0.46231386,96283.0,96282.0,0.00043864]
[1739461967019,0.45831386,96283.0,96282.0,0.00043864]
[1739461967395,0.56481751,96283.0,96282.0,0.00043864]
[1739461967795,0.56481751,96283.0,96271.0,0.0004]
[1739461967796,0.236308,96272.0,96271.0,0.0004]
[1739461968001,0.386308,96272.0,96271.0,0.00053166]
[1739461968199,0.48881165,96272.0,96271.0,0.00053166]
[1739461968421,0.49787075,96272.0,96271.0,0.00053166]
[1739461968844,0.49787075,96272.0,96271.0,6.6e-07]
[1739461969051,0.15,96258.0,96231.0,0.0004]
[1739461969274,0.155865,96237.0,96231.0,0.0004]
[1739461969478,0.207817,96239.0,96231.0,0.0004]
[1739461969479,0.155871,96233.0,96231.0,0.0004]
[1739461970034,0.16466317,96233.0,96231.0,0.0004]
[1739461970649,0.16479422,96233.0,96231.0,0.0004]
[1739461971249,0.17760492,96233.0,96231.0,0.0004]
[1739461972663,0.32760492,96233.0,96231.0,0.0004]
[1739461973646,0.32760492,96233.0,96231.0,6.5e-07]
[1739461973647,0.305873,96232.0,96231.0,6.5e-07]
[1739461973844,0.40837665,96232.0,96231.0,6.5e-07]
[1739461974047,0.305886,96224.0,96223.0,2.5e-07]
[1739461974250,0.49148965,96224.0,96223.0,2.5e-07]
[1739461974430,0.5001385,96224.0,96223.0,2.5e-07]
[1739461975547,0.5001385,96224.0,96199.0,0.0001067]
[1739461975548,0.31179,96219.0,96199.0,0.0001067]
[1739461975749,0.155925,96200.0,96199.0,0.0001067]
[1739461976146,0.1644082,96200.0,96199.0,0.0001067]
[1739461976997,0.1644082,96200.0,96199.0,0.00054542]
[1739461977990,0.1704082,96200.0,96199.0,0.00154542]
[1739461978835,0.1704082,96200.0,96199.0,0.00054542]
[1739461979241,0.1744082,96200.0,96199.0,0.00054542]
[1739461982428,0.1704082,96200.0,96199.0,0.00054542]
[1739461982868,0.1654082,96200.0,96199.0,0.00054542]
[1739461983269,0.1714082,96200.0,96199.0,0.00054542]
[1739461983665,0.1654082,96200.0,96199.0,0.00054542]
[1739461984089,0.1694082,96200.0,96199.0,0.00054542]
[1739461984499,0.1644082,96200.0,96199.0,0.00054542]
[1739461984931,0.1724082,96200.0,96199.0,0.00054542]
[1739461985136,0.1704082,96200.0,96199.0,0.00054542]
[1739461985537,0.1744082,96200.0,96199.0,0.00054542]
[1739461987356,0.3244082,96200.0,96199.0,0.00054542]
[1739461987782,0.42691185,96200.0,96199.0,0.00054542]
[1739461988211,0.45407351,96200.0,96199.0,0.00054542]
[1739461988796,0.77427351,96200.0,96199.0,0.00054542]
[1739461989001,0.80208371,96200.0,96199.0,0.00054542]
[1739461989380,0.90458736,96200.0,96199.0,0.00054542]
[1739461989756,0.82508371,96200.0,96199.0,0.00054542]
[1739461990166,0.81761785,96200.0,96199.0,0.00054542]
[1739461990614,0.84542805,96200.0,96199.0,0.00054542]
[1739461991522,0.84542805,96200.0,96199.0,4.2e-07]
[1739461991720,0.84542805,96200.0,96185.0,0.0001067]
[1739461991721,0.305947,96186.0,96185.0,0.0001067]
[1739461991880,0.40845065,96186.0,96185.0,0.00023839]
[1739461992094,0.41681386,96186.0,96185.0,0.00023839]
[1739461992516,0.44397552,96186.0,96185.0,3.9e-07]
[1739461992776,0.90389641,96186.0,96185.0,3.9e-07]
[1739461992971,0.95019641,96186.0,96185.0,3.9e-07]
[1739461993267,0.97319641,96186.0,96185.0,3.9e-07]
[1739461993590,0.98019641,96186.0,96185.0,3.9e-07]
[1739461993977,0.87121386,96186.0,96185.0,3.9e-07]
[1739461994183,0.88821386,96186.0,96185.0,0.00100039]
[1739461994381,1.21643886,96186.0,96185.0,0.00100039]
[1739461994629,1.22243886,96186.0,96185.0,3.9e-07]
[1739461994806,0.91121386,96186.0,96185.0,0.00100039]
[1739461995008,2.41191051,96186.0,96185.0,3.9e-07]
[1739461995214,0.155986,96162.0,96161.0,0.01462]
[1739461995617,0.16419134,96162.0,96161.0,0.01462]
[1739461996132,0.17704088,96162.0,96161.0,0.01462]
[1739461996921,0.18204088,96162.0,96161.0,0.01462]
[1739461997778,0.18504088,96162.0,96161.0,0.0147267]
[1739461999246,0.18004088,96162.0,96161.0,0.0147267]
[1739461999608,0.18504088,96162.0,96161.0,0.0147267]
[1739462000162,0.18004088,96162.0,96161.0,0.0147267]
[1739462000359,0.18504088,96162.0,96161.0,0.0147267]
[1739462000838,0.18004088,96162.0,96161.0,0.0147267]
[1739462000992,0.17704088,96162.0,96161.0,0.0147267]
[1739462001197,0.18504088,96162.0,96161.0,0.0147267]
[1739462001827,0.18604088,96162.0,96161.0,0.0147267]
[1739462002364,0.17804088,96162.0,96161.0,0.0147267]
[1739462002604,0.18004088,96162.0,96161.0,0.0147267]
[1739462002774,0.18204088,96162.0,96161.0,0.0147267]
[1739462003182,0.18004088,96162.0,96161.0,0.0147267]
[1739462003383,0.18304088,96162.0,96161.0,0.0147267]
[1739462003742,0.18204088,96162.0,96161.0,0.0147267]
[1739462003946,0.26886017,96162.0,96161.0,0.0147267]
[1739462004148,0.52636382,96162.0,96161.0,0.0147267]
[1739462004370,0.54736929,96162.0,96161.0,0.0147267]
[1739462004569,0.77575,96162.0,96161.0,0.0147267]
[1739462004977,0.77375,96162.0,96161.0,0.0147267]
[1739462005372,0.77875,96162.0,96161.0,0.0147267]
[1739462006553,0.77575,96162.0,96161.0,0.0147267]
[1739462006765,0.77875,96162.0,96161.0,0.0147267]
[1739462007374,0.77575,96162.0,96161.0,0.0147267]
[1739462007573,0.77775,96162.0,96161.0,0.0147267]
[1739462007797,0.78275,96162.0,96161.0,0.0147267]
[1739462010297,0.50924088,96162.0,96161.0,0.0147267]
[1739462011048,0.18904088,96162.0,96161.0,0.0147267]
[1739462014233,0.18404088,96162.0,96161.0,0.0147267]
[1739462014386,0.18804088,96162.0,96161.0,0.0147267]
[1739462015269,0.18104088,96162.0,96161.0,0.0147267]
[1739462015754,0.18804088,96162.0,96161.0,0.0147267]
[1739462016497,0.18104088,96162.0,96161.0,0.0147267]
[1739462016709,0.17704088,96162.0,96161.0,0.0147267]
[1739462016941,0.18204088,96162.0,96161.0,0.0147267]
[1739462017134,0.18504088,96162.0,96161.0,0.0147267]
[1739462021159,0.01620534,96162.0,96161.0,0.0972267]
[1739462021379,0.01620534,96162.0,96161.0,0.35571835]
[1739462021601,0.008,96162.0,96161.0,0.40401835]
[1739462021797,0.005,96162.0,96161.0,0.40401835]
[1739462022053,0.14502845,96171.0,96163.0,0.0762]
[1739462022237,0.14502845,96171.0,96164.0,0.10250365]
[1739462022439,0.00672251,96170.0,96164.0,0.10250365]
[1739462022766,0.14502845,96171.0,96165.0,0.155981]
[1739462022975,0.00672251,96169.0,96165.0,0.10250365]
[1739462023243,0.155979,96167.0,96165.0,0.10250365]
[1739462023810,0.207945,96179.0,96167.0,0.155978]
[1739462024041,0.155974,96170.0,96165.0,0.10250365]
[1739462024232,0.155973,96170.0,96165.0,0.10350365]
[1739462024435,0.155973,96170.0,96164.0,0.207976]
[1739462024436,0.2900569,96180.0,96167.0,0.207971]
[1739462024716,0.2900569,96180.0,96166.0,0.10250365]
[1739462024717,0.155978,96167.0,96166.0,0.10250365]
[1739462024876,0.155978,96167.0,96161.0,0.0630267]
[1739462024877,0.15598,96166.0,96165.0,0.002]
[1739462025076,0.00681616,96167.0,96161.0,0.0147267]
[1739462025345,0.155986,96162.0,96161.0,0.0147267]
[1739462025920,0.16279975,96162.0,96161.0,0.0147267]
[1739462027565,0.16579975,96162.0,96161.0,0.0147267]
[1739462028224,0.17079975,96162.0,96161.0,0.0147267]
[1739462028642,0.17679975,96162.0,96161.0,0.0147267]
[1739462029086,0.17079975,96162.0,96161.0,0.0147267]
[1739462029562,0.17779975,96162.0,96161.0,0.0147267]
[1739462029773,0.16279975,96162.0,96161.0,0.0147267]
[1739462030242,0.16779975,96162.0,96161.0,0.0147267]
[1739462030475,0.16279975,96162.0,96161.0,0.0147267]
[1739462030709,0.16779975,96162.0,96161.0,0.0147267]
[1739462031166,0.17779975,96162.0,96161.0,0.0147267]
[1739462031667,0.16279975,96162.0,96161.0,0.0147267]
[1739462032099,0.16979975,96162.0,96161.0,0.0147267]
[1739462033524,0.2763034,96162.0,96161.0,0.0147267]
[1739462034008,0.09160027,96162.0,96161.0,0.0147267]
[1739462034261,0.71778627,96162.0,96161.0,7e-07]
[1739462034973,0.2285,96152.0,96135.0,0.0001067]
[1739462035176,0.2285,96152.0,96081.0,0.02]
[1739462035177,0.156067,96112.0,96107.0,1.075]
[1739462035377,0.156067,96112.0,96107.0,1.0]
[1739462035610,0.16162122,96112.0,96107.0,1.0]
[1739462036017,0.17377372,96112.0,96107.0,1.0]
[1739462036394,0.17377372,96112.0,96111.0,0.00052332]
[1739462037775,0.17977372,96112.0,96111.0,0.00152332]
[1739462038175,0.17477372,96112.0,96111.0,0.00052332]
[1739462038448,0.01870672,96112.0,96111.0,0.00052332]
[1739462038648,0.01970672,96112.0,96111.0,0.00052332]
[1739462039055,0.0141525,96112.0,96111.0,0.15659232]
[1739462039267,0.1702195,96112.0,96111.0,0.00052332]
[1739462039478,0.1702195,96112.0,96040.0,0.14502845]
[1739462039479,0.156098,96093.0,96070.0,0.0819]
[1739462039680,0.156098,96093.0,96092.0,0.00050888]
[1739462040088,0.16141724,96093.0,96092.0,0.00050888]
[1739462040316,0.306098,96093.0,96092.0,8.8e-07]
[1739462041124,0.309098,96093.0,96092.0,8.8e-07]
[1739462041324,0.40860165,96093.0,96092.0,8.8e-07]
[1739462041749,0.156132,96072.0,96060.0,0.0784]
[1739462043284,0.156132,96072.0,96071.0,0.0014]
[1739462043469,0.16835047,96072.0,96071.0,0.0004]
[1739462043833,0.16835047,96072.0,96071.0,0.0024]
[1739462044035,0.16835047,96072.0,96071.0,0.0004]
[1739462044241,0.31835047,96072.0,96071.0,0.0004]
[1739462044448,0.306144,96065.0,96064.0,0.0146866]
[1739462044663,0.306144,96065.0,96064.0,6e-07]
[1739462044867,0.15,96064.0,96031.0,0.07839828]
[1739462045068,0.156197,96032.0,96031.0,0.00029828]
[1739462046338,0.156197,96032.0,96031.0,0.00042985]
[1739462046705,0.16838807,96032.0,96031.0,0.00042985]
[1739462049552,0.01219107,96032.0,96031.0,0.00042985]
[1739462049756,0.02048885,96057.0,96031.0,0.00042985]
[1739462050105,0.156196,96033.0,96031.0,0.00042985]
[1739462050949,0.16812104,96033.0,96031.0,0.00042985]
[1739462051152,0.001,96032.0,96031.0,0.00042985]
[1739462051770,0.156196,96033.0,96031.0,0.00042985]
[1739462052092,0.156196,96033.0,96031.0,0.00142985]
[1739462052286,0.16805423,96033.0,96031.0,0.00142985]
[1739462052498,0.16805423,96033.0,96031.0,0.00042985]
[1739462052652,0.16805423,96033.0,96031.0,0.00142985]
[1739462052833,0.16805423,96033.0,96031.0,0.00242985]
[1739462053191,0.16805423,96033.0,96031.0,0.00142985]
[1739462053582,0.16805423,96033.0,96031.0,0.00242985]
[1739462053791,0.16805423,96033.0,96031.0,0.00142985]
[1739462053987,0.16805423,96033.0,96031.0,0.00242985]
[1739462054382,0.16805423,96033.0,96031.0,0.00142985]
[1739462054763,0.16805423,96033.0,96031.0,0.00242985]
[1739462055104,0.16805423,96033.0,96031.0,0.00142985]
[1739462055260,0.16805423,96033.0,96031.0,0.00042985]
[1739462055464,0.16905423,96033.0,96031.0,0.00042985]
[1739462055663,0.01285823,96033.0,96031.0,0.15662885]
[1739462055868,0.208207,96059.0,96039.0,0.156185]
[1739462056066,0.0823,96077.0,96033.0,0.0497]
[1739462056288,0.23076905,96044.0,96034.0,0.10250365]
[1739462056497,0.208248,96040.0,96034.0,0.10250365]
[1739462056836,0.15619,96037.0,96034.0,0.10250365]
[1739462057325,0.208248,96040.0,96033.0,0.0507]
[1739462057326,0.208251,96038.0,96033.0,0.0507]
[1739462057521,0.156194,96034.0,96033.0,0.001]
[1739462058377,0.208256,96036.0,96031.0,0.00053645]
[1739462058617,0.156194,96034.0,96033.0,0.001]
[1739462059024,0.156197,96032.0,96031.0,0.00053645]
[1739462060542,0.156197,96032.0,96031.0,0.00153645]
[1739462060871,0.156197,96032.0,96031.0,0.00253645]
[1739462061400,0.156197,96032.0,96031.0,0.00153645]
[1739462061534,0.156197,96032.0,96031.0,0.00253645]
[1739462061728,0.156197,96032.0,96031.0,0.00153645]
[1739462062139,0.156197,96032.0,96031.0,0.00053645]
[1739462063971,0.157197,96032.0,96031.0,0.00053645]
[1739462066313,0.20466579,96034.0,96031.0,0.00053645]
[1739462066790,0.156197,96032.0,96031.0,0.00053645]
[1739462070685,0.29195328,96041.0,96032.0,0.128]
[1739462070686,0.14597664,96041.0,96032.0,0.128]
[1739462070892,0.156196,96033.0,96032.0,0.23050365]
[1739462071097,0.156197,96032.0,96031.0,0.00053645]
[1739462071510,0.14597664,96041.0,96031.0,0.00053645]
[1739462071898,0.156197,96032.0,96031.0,0.00053645]
[1739462075664,0.15,96040.0,96031.0,0.00053645]
[1739462076074,0.22017836,96044.0,96031.0,0.00053645]
[1739462076075,0.01194036,96044.0,96031.0,0.23913545]
[1739462076300,0.35422064,96042.0,96033.0,0.156196]
[1739462076499,0.156185,96040.0,96033.0,0.156196]
[1739462076697,0.35422064,96042.0,96031.0,0.08493645]
[1739462076901,0.14597664,96042.0,96033.0,0.156196]
[1739462077124,0.14597664,96042.0,96037.0,0.156189]
[1739462077676,0.14597664,96042.0,96034.0,0.10250365]
[1739462078104,0.001,96040.0,96035.0,0.0322962]
[1739462078278,0.001,96040.0,96039.0,0.156186]
[1739462078604,0.001,96042.0,96039.0,0.37302705]
[1739462078805,0.208183,96069.0,96042.0,0.0484]
[1739462079014,0.14597664,96052.0,96043.0,0.13479985]
[1739462079214,0.14597664,96052.0,96044.0,0.0322962]
[1739462079440,0.14597664,96052.0,96045.0,0.13479985]
[1739462079582,0.156162,96054.0,96046.0,0.0322962]
[1739462079783,0.156166,96052.0,96047.0,0.13479985]
[1739462080039,0.29195328,96060.0,96048.0,0.0322962]
[1739462080244,0.29195328,96060.0,96049.0,0.0322962]
[1739462080245,0.156169,96050.0,96049.0,0.0322962]
[1739462080368,0.14597664,96060.0,96049.0,0.0322962]
[1739462080579,0.208205,96059.0,96048.0,0.10250365]
[1739462080781,0.156168,96050.0,96048.0,0.10250365]
[1739462081438,0.15617,96049.0,96048.0,0.10250365]
[1739462081608,0.14597664,96060.0,96048.0,0.10250365]
[1739462081813,0.156167,96051.0,96048.0,0.10250365]
[1739462082012,0.156167,96051.0,96048.0,0.10450365]
[1739462082252,0.208218,96053.0,96048.0,0.10550365]
[1739462082463,0.14597664,96060.0,96048.0,0.26167365]
[1739462082672,0.29195328,96060.0,96048.0,0.10850365]
[1739462082908,0.15617,96049.0,96048.0,0.10250365]
[1739462083120,0.15617,96049.0,96048.0,0.10450365]